fUST/lending_fUST_20250818
["ID","MTS","AMOUNT","RATE_DAILY","PERIOD"]
[379971820,1755454241232,-480.0,0.00019452,2]
[379971822,1755454241243,-480.0,0.00019452,2]
[379971824,1755454241253,-480.0,0.00019452,2]
[379971826,1755454241262,-480.0,0.00019452,2]
[379971828,1755454241272,-471.97695845,0.00019452,2]
[379971830,1755454241281,-480.0,0.00019452,2]
[379971832,1755454241292,-480.0,0.00019452,2]
[379971834,1755454241301,-480.0,0.00019452,2]
[379971836,1755454241310,-480.0,0.00019452,2]
[379971838,1755454241319,-480.0,0.00019452,2]
[379971840,1755454241328,-480.0,0.00019452,2]
[379971842,1755454241337,-480.0,0.00019452,2]
[379971844,1755454241347,-480.0,0.00019452,2]
[379971846,1755454241356,-480.0,0.00019452,2]
[379971847,1755454241365,-480.0,0.00019452,2]
[379971849,1755454241375,-480.0,0.00019452,2]
[379971851,1755454241384,-356.48,0.00019452,2]
[379971853,1755454241393,-480.0,0.00019452,2]
[379971855,1755454241403,-480.0,0.00019452,2]
[379971857,1755454241412,-480.0,0.00019452,2]
[379971859,1755454241421,-480.0,0.00019452,2]
[379971861,1755454241430,-480.0,0.00019452,2]
[379971863,1755454241440,-480.0,0.00019452,2]
[379971865,1755454241449,-480.0,0.00019452,2]
[379971867,1755454241458,-510.49,0.00019452,2]
[379971869,1755454241468,-227.52921601,0.00019452,2]
[379971871,1755454241477,-480.0,0.00019452,2]
[379971873,1755454241486,-480.0,0.00019452,2]
[379971875,1755454241495,-480.0,0.00019452,2]
[379971877,1755454241505,-480.0,0.00019452,2]
[379971879,1755454241514,-480.0,0.00019452,2]
[379971881,1755454241524,-427.2468826,0.00019452,2]
[379971883,1755454241533,-480.0,0.00019452,2]
[379971885,1755454241542,-480.0,0.00019452,2]
[379971887,1755454241552,-480.0,0.00019452,2]
[379971889,1755454241561,-753.15327361,0.00019467,2]
[379971891,1755454241571,-456.14690343,0.00019603,2]
[379971893,1755454241580,-500.0,0.0001963,2]
[379971895,1755454241590,-480.0,0.00019726,2]
[379971897,1755454241599,-480.0,0.00019726,2]
[379971899,1755454241609,-480.0,0.00019726,2]
[379971901,1755454241618,-526.18,0.00019726,2]
[379971903,1755454241627,-182.17,0.00019726,2]
[379971905,1755454241637,-480.0,0.00019726,2]
[379971907,1755454241647,-480.0,0.00019726,2]
[379971909,1755454241656,-480.0,0.00019726,2]
[379971911,1755454241665,-542.98,0.00019726,2]
[379971913,1755454241674,-489.12,0.00019726,2]
[379971915,1755454241685,-480.0,0.00019726,2]
[379971917,1755454241694,-299.76,0.00019726,2]
[379971919,1755454241704,-480.0,0.00019726,2]
[379971921,1755454241713,-525.77367943,0.00019726,2]
[379971923,1755454241723,-480.0,0.00019726,2]
[379971925,1755454241736,-480.0,0.00019726,2]
[379971927,1755454241746,-480.0,0.00019726,2]
[379971929,1755454241755,-500.74,0.00019726,2]
[379971931,1755454241764,-539.5,0.00019726,2]
[379971933,1755454241775,-937.0,0.00019726,2]
[379971935,1755454241784,-480.0,0.00019726,2]
[379971937,1755454241793,-480.0,0.00019726,2]
[379971939,1755454241802,-591.23,0.00019726,2]
[379971941,1755454241811,-480.0,0.00019726,2]
[379971943,1755454241821,-480.0,0.00019726,2]
[379971945,1755454241830,-480.0,0.00019726,2]
[379971947,1755454241839,-480.0,0.00019726,2]
[379971949,1755454241848,-480.0,0.00019726,2]
[379971951,1755454241857,-480.0,0.00019726,2]
[379971953,1755454241866,-944.68,0.00019726,2]
[379971955,1755454241876,-480.0,0.00019726,2]
[379971957,1755454241885,-480.0,0.00019726,2]
[379971959,1755454241894,-480.0,0.00019726,2]
[379971961,1755454241903,-2087.31,0.00019726,2]
[379971963,1755454241912,-480.0,0.00019726,2]
[379971965,1755454241921,-480.0,0.00019726,2]
[379971967,1755454241931,-480.0,0.00019726,2]
[379971969,1755454241940,-480.0,0.00019726,2]
[379971971,1755454241950,-480.0,0.00019726,2]
[379971973,1755454241959,-480.0,0.00019726,2]
[379971975,1755454241968,-480.0,0.00019726,2]
[379971977,1755454241977,-480.0,0.00019726,2]
[379971979,1755454241987,-480.0,0.00019726,2]
[379971981,1755454241996,-926.1,0.00019726,2]
[379971983,1755454242005,-480.0,0.00019726,2]
[379971985,1755454242014,-480.0,0.00019726,2]
[379971987,1755454242023,-480.0,0.00019726,2]
[379971989,1755454242034,-480.0,0.00019726,2]
[379971991,1755454242043,-480.0,0.00019726,2]
[379971993,1755454242054,-562.34,0.00019726,2]
[379971995,1755454242064,-480.0,0.00019726,2]
[379971997,1755454242073,-555.25,0.00019726,2]
[379971999,1755454242083,-480.0,0.00019726,2]
[379972001,1755454242092,-480.0,0.00019726,2]
[379972003,1755454242101,-480.0,0.00019726,2]
[379972005,1755454242110,-508.3856485,0.00019726,2]
[379972007,1755454242119,-480.0,0.00019726,2]
[379972009,1755454242129,-480.0,0.00019726,2]
[379972011,1755454242138,-624.14987396,0.00019726,2]
[379972013,1755454242146,-480.0,0.00019726,2]
[379972015,1755454242157,-480.0,0.00019726,2]
[379972017,1755454242166,-480.0,0.00019726,2]
[379972019,1755454242174,-510.49,0.00019726,2]
[379972021,1755454242183,-480.0,0.00019726,2]
[379972023,1755454242192,-480.0,0.00019726,2]
[379972025,1755454242201,-480.0,0.00019726,2]
[379972027,1755454242211,-480.0,0.00019726,2]
[379972029,1755454242220,-860.719203,0.00019863,2]
[379972031,1755454242230,-6948.55985896,0.000199,2]
[379972033,1755454242239,-500.0,0.00019968,2]
[379972034,1755454242248,-1000.0,0.00019968,2]
[379972035,1755454242258,-480.0,0.0002,2]
[379972036,1755454242267,-480.0,0.0002,2]
[379972037,1755454242277,-480.0,0.0002,2]
[379972038,1755454242287,-480.0,0.0002,2]
[379972039,1755454242296,-578.27,0.0002,2]
[379972040,1755454242305,-480.0,0.0002,2]
[379972041,1755454242315,-160.0,0.0002,3]
[379972042,1755454242324,-440.01,0.0002,2]
[379972043,1755454242333,-375.08,0.0002,2]
[379972044,1755454242342,-500.74,0.0002,2]
[379972045,1755454242351,-539.5,0.0002,2]
[379972046,1755454242360,-937.0,0.0002,2]
[379972047,1755454242373,-548.35,0.0002,2]
[379972048,1755454242382,-591.23,0.0002,2]
[379972049,1755454242391,-162.51,0.0002,2]
[379972050,1755454242400,-584.16,0.0002,2]
[379972051,1755454242410,-944.68,0.0002,2]
[379972052,1755454242419,-480.0,0.0002,2]
[379972053,1755454242429,-480.0,0.0002,2]
[379972054,1755454242438,-480.0,0.0002,2]
[379972055,1755454242448,-2087.31,0.0002,2]
[379972056,1755454242457,-480.0,0.0002,2]
[379972057,1755454242467,-480.0,0.0002,2]
[379972058,1755454242476,-480.0,0.0002,2]
[379972059,1755454242485,-480.0,0.0002,2]
[379972060,1755454242494,-219.16,0.0002,2]
[379972061,1755454242503,-480.0,0.0002,2]
[379972062,1755454242514,-480.0,0.0002,2]
[379972063,1755454242523,-926.1,0.0002,2]
[379972064,1755454242533,-460.0,0.0002,2]
[379972065,1755454242542,-480.0,0.0002,2]
[379972066,1755454242552,-480.0,0.0002,2]
[379972067,1755454242562,-480.0,0.0002,2]
[379972068,1755454242571,-480.0,0.0002,2]
[379972069,1755454242581,-480.0,0.0002,2]
[379972071,1755454242590,-480.0,0.0002,2]
[379972072,1755454242600,-423.82,0.0002,2]
[379972074,1755454242609,-479.56,0.0002,2]
[379972075,1755454242618,-480.0,0.0002,2]
[379972076,1755454242627,-480.0,0.0002,2]
[379972077,1755454242636,-568.71,0.0002,2]
[379972078,1755454242645,-480.0,0.0002,2]
[379972079,1755454242655,-480.0,0.0002,2]
[379972080,1755454242664,-510.49,0.0002,2]
[379972081,1755454242673,-548.65669777,0.0002,2]
[379972082,1755454242682,-480.0,0.0002,2]
[379972083,1755454242691,-480.0,0.0002,2]
[379972084,1755454242700,-480.0,0.0002,2]
[379972086,1755454242710,-500.0,0.00020178,2]
[379972087,1755454242719,-392.751479,0.00020187,2]
[379972089,1755454242731,-2329.08,0.00020223,3]
[379972091,1755454242741,-1164.54,0.00020223,3]
[379972092,1755454242751,-582.28,0.00020223,3]
[379972093,1755454242760,-160.0,0.0002025,2]
[379972094,1755454242770,-480.0,0.00020272,2]
[379972095,1755454242779,-581.71,0.00020273,2]
[379972096,1755454242788,-480.0,0.00020273,2]
[379972097,1755454242800,-480.0,0.00020273,2]
[379972098,1755454242810,-480.0,0.00020273,2]
[379972099,1755454242819,-425.4,0.00020273,2]
[379972100,1755454242829,-500.74,0.00020273,2]
[379972101,1755454242838,-539.5,0.00020273,2]
[379972102,1755454242847,-937.0,0.00020273,2]
[379972103,1755454242856,-591.23,0.00020273,2]
[379972104,1755454242866,-944.68,0.00020273,2]
[379972105,1755454242875,-480.0,0.00020273,2]
[379972106,1755454242884,-480.0,0.00020273,2]
[379972107,1755454242894,-480.0,0.00020273,2]
[379972108,1755454242903,-480.0,0.00020273,2]
[379972109,1755454242912,-2087.31,0.00020273,2]
[379972110,1755454242921,-212.46,0.00020273,2]
[379972111,1755454242930,-480.0,0.00020273,2]
[379972112,1755454242939,-480.0,0.00020273,2]
[379972113,1755454242948,-508.42,0.00020273,2]
[379972114,1755454242958,-480.0,0.00020273,2]
[379972115,1755454242967,-926.1,0.00020273,2]
[379972116,1755454242976,-480.0,0.00020273,2]
[379972117,1755454242985,-480.0,0.00020273,2]
[379972118,1755454242994,-163.79,0.00020273,2]
[379972119,1755454243003,-480.0,0.00020273,2]
[379972120,1755454243012,-480.0,0.00020273,2]
[379972121,1755454243021,-480.0,0.00020273,2]
[379972122,1755454243030,-480.0,0.00020273,2]
[379972123,1755454243040,-480.0,0.00020273,2]
[379972124,1755454243048,-515.41,0.00020273,2]
[379972125,1755454243057,-480.0,0.00020273,2]
[379972126,1755454243067,-510.49,0.00020273,2]
[379972127,1755454243076,-480.0,0.00020273,2]
[379972128,1755454243085,-480.0,0.00020273,2]
[379972129,1755454243094,-205.45,0.00020352,2]
[379972130,1755454243103,-6948.5598587,0.00020403,2]
[379972131,1755454243112,-456.14690343,0.00020432,2]
[379972132,1755454243122,-480.0,0.00020547,2]
[379972133,1755454243132,-480.0,0.00020547,2]
[379972134,1755454243141,-480.0,0.00020547,2]
[379972135,1755454243150,-500.74,0.00020547,2]
[379972136,1755454243159,-539.5,0.00020547,2]
[379972137,1755454243168,-937.0,0.00020547,2]
[379972138,1755454243177,-591.23,0.00020547,2]
[379972139,1755454243187,-944.68,0.00020547,2]
[379972140,1755454243196,-480.0,0.00020547,2]
[379972141,1755454243205,-480.0,0.00020547,2]
[379972142,1755454243214,-480.0,0.00020547,2]
[379972143,1755454243224,-2087.31,0.00020547,2]
[379972144,1755454243233,-480.0,0.00020547,2]
[379972145,1755454243242,-537.92,0.00020547,2]
[379972146,1755454243251,-480.0,0.00020547,2]
[379972147,1755454243261,-926.1,0.00020547,2]
[379972148,1755454243271,-480.0,0.00020547,2]
[379972149,1755454243280,-480.0,0.00020547,2]
[379972150,1755454243290,-436.73,0.00020547,2]
[379972152,1755454243299,-480.0,0.00020547,2]
[379972154,1755454243309,-480.0,0.00020547,2]
[379972156,1755454243318,-480.0,0.00020547,2]
[379972158,1755454243328,-205.6,0.00020547,2]
[379972160,1755454243337,-480.0,0.00020547,2]
[379972162,1755454243347,-510.49,0.00020547,2]
[379972164,1755454243356,-373.01,0.00020547,2]
[379972166,1755454243365,-420.0,0.0002055,2]
[379972168,1755454243374,-160.0,0.00020631,2]
[379972170,1755454243383,-160.0,0.00020631,2]
[379972172,1755454243392,-417.15472785,0.00020631,2]
[379972174,1755454243402,-160.0,0.00020631,2]
[379972176,1755454243413,-232.1512529,0.00020631,2]
[379972178,1755454243422,-160.0,0.00020631,2]
[379972180,1755454243432,-160.0,0.00020631,2]
[379972181,1755454243443,-160.0,0.00020631,2]
[379972182,1755454243452,-12682.46447135,0.00020631,2]
[379972183,1755454243461,-215.71995163,0.00020631,2]
[379972184,1755454243471,-216.83204348,0.00020631,2]
[379972185,1755454243480,-843.71309931,0.00020631,2]
[379972186,1755454243491,-528.48506731,0.00020631,2]
[379972187,1755454243500,-375.77065697,0.00020631,2]
[379972188,1755454243509,-1200.0,0.00020649,2]
[379972189,1755454243518,-1000.0,0.00020721,2]
[379972190,1755454243528,-260.0,0.00020798,2]
[379972191,1755454243539,-198.47653589,0.00020815,2]
[379972192,1755454243548,-480.0,0.00020821,2]
[379972193,1755454243560,-150.96,0.00020821,2]
[379972194,1755454243569,-480.0,0.00020821,2]
[379972195,1755454243578,-500.74,0.00020821,2]
[379972196,1755454243588,-539.5,0.00020821,2]
[379972197,1755454243597,-937.0,0.00020821,2]
[379972198,1755454243606,-591.23,0.00020821,2]
[379972199,1755454243615,-944.68,0.00020821,2]
[379972200,1755454243624,-480.0,0.00020821,2]
[379972201,1755454243635,-480.0,0.00020821,2]
[379972202,1755454243644,-480.0,0.00020821,2]
[379972203,1755454243653,-2087.31,0.00020821,2]
[379972204,1755454243662,-480.0,0.00020821,2]
[379972205,1755454243672,-364.63,0.00020821,2]
[379972206,1755454243682,-926.1,0.00020821,2]
[379972207,1755454243691,-480.0,0.00020821,2]
[379972208,1755454243701,-480.0,0.00020821,2]
[379972209,1755454243710,-480.0,0.00020821,2]
[379972210,1755454243719,-480.0,0.00020821,2]
[379972211,1755454243737,-480.0,0.00020821,2]
[379972212,1755454243750,-480.0,0.00020821,2]
[379972213,1755454243759,-510.49,0.00020821,2]
[379972214,1755454243768,-6948.5598587,0.00020907,2]
[379972215,1755454243777,-3000.0,0.00021,2]
[379972216,1755454243787,-3000.0,0.0002101,2]
[379972217,1755454243797,-3000.0,0.0002102,2]
[379972218,1755454243806,-3000.0,0.0002103,2]
[379972219,1755454243816,-3000.0,0.0002104,2]
[379972220,1755454243826,-3000.0,0.0002105,2]
[379972221,1755454243944,-3000.0,0.0002106,2]
[379972222,1755454243954,-3000.0,0.0002107,2]
[379972223,1755454243963,-3000.0,0.0002108,2]
[379972224,1755454243973,-3000.0,0.0002109,2]
[379972225,1755454243983,-480.0,0.00021095,2]
[379972226,1755454243992,-480.0,0.00021095,2]
[379972227,1755454244001,-500.74,0.00021095,2]
[379972228,1755454244012,-539.5,0.00021095,2]
[379972229,1755454244022,-937.0,0.00021095,2]
[379972230,1755454244034,-591.23,0.00021095,2]
[379972231,1755454244043,-944.68,0.00021095,2]
[379972232,1755454244053,-480.0,0.00021095,2]
[379972233,1755454244062,-480.0,0.00021095,2]
[379972234,1755454244071,-480.0,0.00021095,2]
[379972235,1755454244080,-2087.31,0.00021095,2]
[379972236,1755454244089,-480.0,0.00021095,2]
[379972237,1755454244098,-926.1,0.00021095,2]
[379972238,1755454244108,-480.0,0.00021095,2]
[379972239,1755454244117,-480.0,0.00021095,2]
[379972240,1755454244127,-596.83411631,0.00021095,2]
[379972241,1755454244136,-480.0,0.00021095,2]
[379972242,1755454244145,-480.0,0.00021095,2]
[379972243,1755454244155,-480.0,0.00021095,2]
[379972244,1755454244164,-510.49,0.00021095,2]
[379972245,1755454244173,-3000.0,0.000211,2]
[379972246,1755454244183,-3000.0,0.0002111,2]
[379972247,1755454244192,-3000.0,0.0002112,2]
[379972248,1755454244201,-3000.0,0.0002113,2]
[379972249,1755454244211,-3000.0,0.0002114,2]
[379972250,1755454244220,-3000.0,0.0002115,2]
[379972251,1755454244229,-3000.0,0.0002116,2]
[379972252,1755454244238,-720.0,0.00021163,20]
[379972253,1755454244248,-3000.0,0.0002117,2]
[379972254,1755454244257,-3000.0,0.0002118,2]
[379972255,1755454244266,-3000.0,0.0002119,2]
[379972256,1755454244276,-3000.0,0.000212,2]
[379972257,1755454244285,-3150.0,0.0002121,2]
[379972258,1755454244294,-456.14690343,0.00021262,2]
[379972259,1755454244304,-308.17,0.00021277,2]
[379972260,1755454244313,-360.0,0.00021346,2]
[379972261,1755454244323,-495.33,0.00021369,2]
[379972262,1755454244332,-282.47,0.00021369,2]
[379972263,1755454244341,-500.74,0.00021369,2]
[379972264,1755454244351,-539.5,0.00021369,2]
[379972265,1755454244360,-937.0,0.00021369,2]
[379972266,1755454244369,-591.23,0.00021369,2]
[379972267,1755454244379,-944.68,0.00021369,2]
[379972268,1755454244387,-563.88,0.00021369,2]
[379972269,1755454244398,-480.0,0.00021369,2]
[379972270,1755454244407,-480.0,0.00021369,2]
[379972271,1755454244416,-2087.31,0.00021369,2]
[379972272,1755454244426,-480.0,0.00021369,2]
[379972273,1755454244435,-926.1,0.00021369,2]
[379972274,1755454244444,-480.0,0.00021369,2]
[379972275,1755454244453,-480.0,0.00021369,2]
[379972276,1755454244463,-480.0,0.00021369,2]
[379972277,1755454244472,-480.0,0.00021369,2]
[379972278,1755454244481,-480.0,0.00021369,2]
[379972279,1755454244490,-510.49,0.00021369,2]
[379972280,1755454244500,-6948.5598587,0.0002141,2]
[379972281,1755454244509,-500.74,0.00021643,2]
[379972282,1755454244518,-539.5,0.00021643,2]
[379972283,1755454244527,-937.0,0.00021643,2]
[379972284,1755454244538,-591.23,0.00021643,2]
[379972285,1755454244547,-944.68,0.00021643,2]
[379972286,1755454244556,-480.0,0.00021643,2]
[379972287,1755454244566,-480.0,0.00021643,2]
[379972288,1755454244576,-2087.31,0.00021643,2]
[379972289,1755454244586,-480.0,0.00021643,2]
[379972290,1755454244595,-926.1,0.00021643,2]
[379972291,1755454244605,-480.0,0.00021643,2]
[379972292,1755454244615,-480.0,0.00021643,2]
[379972293,1755454244624,-480.0,0.00021643,2]
[379972294,1755454244635,-480.0,0.00021643,2]
[379972295,1755454244646,-480.0,0.00021643,2]
[379972296,1755454244655,-510.49,0.00021643,2]
[379972297,1755454244664,-573.29265701,0.00021676,2]
[379972298,1755454244674,-158.60123121,0.00021676,2]
[379972299,1755454244683,-158.62980632,0.00021676,2]
[379972300,1755454244692,-340.84167788,0.00021676,2]
[379972301,1755454244701,-500.0,0.00021676,2]
[379972302,1755454244711,-500.0,0.00021676,2]
[379972303,1755454244719,-340.42651408,0.00021676,2]
[379972304,1755454244730,-500.0,0.00021676,2]
[379972305,1755454244739,-415.34722731,0.00021676,2]
[379972306,1755454244748,-258.67006152,0.00021676,2]
[379972307,1755454244757,-160.62292884,0.00021676,2]
[379972308,1755454244767,-500.0,0.00021676,2]
[379972309,1755454244777,-500.0,0.00021676,2]
[379972310,1755454244786,-158.62313276,0.00021676,2]
[379972311,1755454244796,-500.16719209,0.00021676,2]
[379972312,1755454244805,-500.0,0.00021676,2]
[379972313,1755454244815,-500.22350934,0.00021676,2]
[379972314,1755454244825,-500.0,0.00021676,2]
[379972315,1755454244835,-500.0,0.00021676,2]
[379972316,1755454244844,-500.0,0.00021676,2]
[379972317,1755454244854,-500.0,0.00021676,2]
[379972318,1755454244863,-500.0,0.00021676,2]
[379972319,1755454244873,-445.5478031,0.00021676,2]
[379972320,1755454244882,-500.0,0.00021676,2]
[379972321,1755454244892,-500.0,0.00021676,2]
[379972322,1755454244901,-500.0,0.00021676,2]
[379972323,1755454244911,-500.0,0.00021676,2]
[379972324,1755454244920,-500.0,0.00021676,2]
[379972325,1755454244929,-500.0,0.00021676,2]
[379972326,1755454244938,-500.0,0.00021676,2]
[379972327,1755454244947,-237.57852605,0.00021676,2]
[379972328,1755454244956,-500.0,0.00021676,2]
[379972329,1755454244965,-500.0,0.00021676,2]
[379972330,1755454244974,-500.0,0.00021676,2]
[379972331,1755454244983,-500.0,0.00021676,2]
[379972332,1755454244993,-217.04616223,0.00021676,2]
[379972333,1755454245002,-500.0,0.00021676,2]
[379972334,1755454245011,-500.0,0.00021676,2]
[379972335,1755454245022,-560.68640199,0.00021676,2]
[379972336,1755454245031,-501.74670769,0.00021676,2]
[379972337,1755454245041,-500.0,0.00021676,2]
[379972338,1755454245050,-500.0,0.00021676,2]
[379972339,1755454245059,-500.0,0.00021676,2]
[379972340,1755454245069,-521.8552445,0.00021676,2]
[379972341,1755454245078,-500.0,0.00021676,2]
[379972342,1755454245087,-168.89872184,0.00021676,2]
[379972343,1755454245096,-500.99412831,0.00021676,2]
[379972344,1755454245106,-500.0,0.00021676,2]
[379972345,1755454245115,-500.0,0.00021676,2]
[379972346,1755454245124,-5820.41352066,0.00021787,2]
[379972347,1755454245134,-500.0,0.00021881,2]
[379972348,1755454245143,-500.0,0.00021881,2]
[379972349,1755454245152,-500.0,0.00021881,2]
[379972350,1755454245161,-500.0,0.00021881,2]
[379972351,1755454245171,-460.0,0.00021894,2]
[379972352,1755454245180,-6948.5598587,0.00021913,2]
[379972353,1755454245190,-500.74,0.00021917,2]
[379972354,1755454245199,-539.5,0.00021917,2]
[379972355,1755454245208,-937.0,0.00021917,2]
[379972356,1755454245217,-591.23,0.00021917,2]
[379972357,1755454245227,-944.68,0.00021917,2]
[379972358,1755454245236,-480.0,0.00021917,2]
[379972359,1755454245245,-480.0,0.00021917,2]
[379972360,1755454245255,-2087.31,0.00021917,2]
[379972361,1755454245264,-480.0,0.00021917,2]
[379972362,1755454245274,-926.1,0.00021917,2]
[379972363,1755454245283,-480.0,0.00021917,2]
[379972364,1755454245293,-480.0,0.00021917,2]
[379972365,1755454245302,-480.0,0.00021917,2]
[379972366,1755454245312,-480.0,0.00021917,2]
[379972367,1755454245321,-480.0,0.00021917,2]
[379972368,1755454245330,-510.49,0.00021917,2]
[379972369,1755454245339,-500.0,0.00021978,2]
[379972370,1755454245348,-159.60508025,0.00021978,2]
[379972371,1755454245358,-500.0,0.00021978,2]
[379972372,1755454245367,-500.0,0.00021978,2]
[379972373,1755454245377,-500.0,0.00021978,2]
[379972374,1755454245385,-500.0,0.00021978,2]
[379972375,1755454245395,-158.61775077,0.00021978,2]
[379972376,1755454245404,-162.95,0.00022,7]
[379972377,1755454245413,-12682.46447135,0.00022,7]
[379972378,1755454245422,-14389.81,0.00022,7]
[379972379,1755454245431,-5425.35,0.00022,7]
[379972380,1755454245441,-33279.2,0.00022,2]
[379972381,1755454245450,-160.0,0.00022,7]
[379972382,1755454245460,-417.15472785,0.00022,7]
[379972383,1755454245469,-215.71995163,0.00022,7]
[379972384,1755454245479,-375.77065697,0.00022,7]
[379972385,1755454245489,-167.0,0.00022,2]
[379972386,1755454245498,-500.0,0.00022022,2]
[379972387,1755454245507,-309.5546377,0.00022026,2]
[379972388,1755454245516,-500.0,0.00022026,2]
[379972389,1755454245525,-500.0,0.00022026,2]
[379972390,1755454245535,-500.0,0.00022026,2]
[379972391,1755454245545,-500.0,0.00022026,2]
[379972392,1755454245554,-500.0,0.00022026,2]
[379972393,1755454245564,-500.0,0.00022026,2]
[379972394,1755454245574,-500.0,0.00022026,2]
[379972395,1755454245583,-500.0,0.00022026,2]
[379972396,1755454245592,-338.40442225,0.00022026,2]
[379972397,1755454245602,-456.14690343,0.00022091,2]
[379972398,1755454245611,-224.69,0.000221,2]
[379972399,1755454245621,-500.74,0.00022191,2]
[379972401,1755454245630,-539.5,0.00022191,2]
[379972403,1755454245638,-937.0,0.00022191,2]
[379972406,1755454245647,-591.23,0.00022191,2]
[379972407,1755454245657,-944.68,0.00022191,2]
[379972408,1755454245665,-308.14,0.00022191,2]
[379972409,1755454245675,-480.0,0.00022191,2]
[379972410,1755454245683,-2087.31,0.00022191,2]
[379972411,1755454245693,-480.0,0.00022191,2]
[379972412,1755454245702,-926.1,0.00022191,2]
[379972413,1755454245711,-480.0,0.00022191,2]
[379972414,1755454245720,-480.0,0.00022191,2]
[379972415,1755454245733,-480.0,0.00022191,2]
[379972416,1755454245742,-480.0,0.00022191,2]
[379972417,1755454245751,-480.0,0.00022191,2]
[379972418,1755454245761,-510.49,0.00022191,2]
[379972419,1755454245771,-410.89,0.00022202,2]
[379972420,1755454245780,-151.0,0.00022208,4]
[379972421,1755454245790,-1000.0,0.00022224,2]
[379972422,1755454245802,-796.146,0.00022315,2]
[379972423,1755454245812,-179.134,0.00022315,2]
[379972424,1755454245822,-587.0,0.00022403,2]
[379972425,1755454245831,-6948.5598587,0.00022416,2]
[379972426,1755454245841,-500.0,0.00022429,2]
[379972427,1755454245850,-560.0,0.00022442,2]
[379972428,1755454245860,-500.74,0.00022465,2]
[379972429,1755454245869,-539.5,0.00022465,2]
[379972430,1755454245878,-937.0,0.00022465,2]
[379972431,1755454245889,-591.23,0.00022465,2]
[379972432,1755454245898,-944.68,0.00022465,2]
[379972433,1755454245908,-480.0,0.00022465,2]
[379972434,1755454245917,-2087.31,0.00022465,2]
[379972435,1755454245927,-527.35436017,0.00022465,2]
[379972436,1755454245936,-926.1,0.00022465,2]
[379972437,1755454245945,-480.0,0.00022465,2]
[379972438,1755454245954,-480.0,0.00022465,2]
[379972439,1755454245963,-480.0,0.00022465,2]
[379972440,1755454245972,-480.0,0.00022465,2]
[379972441,1755454245981,-480.0,0.00022465,2]
[379972442,1755454245990,-510.49,0.00022465,2]
[379972443,1755454245999,-408.0,0.00022574,2]
[379972444,1755454246009,-422.367,0.00022574,2]
[379972445,1755454246018,-151.0,0.000226,9]
[379972446,1755454246028,-8564.08284501,0.00022739,7]
[379972447,1755454246039,-500.74,0.00022739,2]
[379972448,1755454246050,-539.5,0.00022739,2]
[379972449,1755454246060,-937.0,0.00022739,2]